Workbook

Sheet NOTES (hidden)
A2: The model has actual and test data to illustrate the workings of the model. | D2: 2020
A4: Issue | B4: Location | C4: Item | D4: Comment
A6: 1 | B6: 'Model update'!C25 | C6: CPI | D6: ="Updated June "&D2-1&" CPI for "&D2 -> Updated June 2019 CPI for 2020 | E6: NOTE: This worksheet is programmed to update for each year - use as checklist and note any placeholders or changes
E7: NOTE: Worksheet names in this file are programmed to update each year once each worksheet is accessed and a cell is selected
A8: =A6+1 -> 2 | B8: 'Model update'!B34 | C8: ="Xt for "&D2 -> Xt for 2020 | D8: ="Value will require updating for "&D2&" cost of debt " -> Value will require updating for 2020 cost of debt
A10: =A8+1 -> 3 | B10: 'Model update'!B44 | C10: ="Pass Through Amount for "&D2 -> Pass Through Amount for 2020 | D10: NIL for 2020
A12: =A10+1 -> 4 | B12: 'Model update'!H79:H83 | C12: Real Pre-tax WACC (rptw) | D12: ="Updated "&$D$2&" value for Jemena, placeholders for others" -> Updated 2020 value for Jemena, placeholders for others
A14: =A12+1 -> 5 | B14: ="Prop"&D2&"DistTar!E8:E96" -> Prop2020DistTar!E8:E96 | C14: =D2-1&" tariffs" -> 2019 tariffs | D14: ="Updated from "&D2-1&" model" -> Updated from 2019 model
A16: =A14+1 -> 6 | B16: ARS!B6:B12 | C16: =D2-1&" ARS tariffs" -> 2019 ARS tariffs | D16: ="Updated from "&D2-1&" model" -> Updated from 2019 model
A18: =A16+1 -> 7 | B18: The following is test data to illustrate the workings of the model. | D18: Input data required from DNSPs
B19: ="Prop"&D2&"DistTar!D8:D96" -> Prop2020DistTar!D8:D96 | C19: ="Proposed "&D2&" Tariffs" -> Proposed 2020 Tariffs
B20: ="Prop"&D2&"DistTar!F8:F96" -> Prop2020DistTar!F8:F96 | C20: ="Actual "&D2-2&" Volumes" -> Actual 2018 Volumes
B22: ARS!C6:C12 | C22: ="Proposed "&D2&" Ancillary Reference Services Charges" -> Proposed 2020 Ancillary Reference Services Charges

Sheet NOTES1 (hidden)
B2: The model has actual and test data to illustrate the workings of the model. | E2: 2024-25 | F2: 2023-24 | G2: 2022
B4: Issue | C4: Location | D4: Item | E4: Comment
A6: AER: | B6: 1 | C6: 'Model update'!B17:B22 | D6: CPI | E6: ="Updated December "&LEFT(E2,4)-1&" CPI for "&E2 -> Updated December 2023 CPI for 2024-25 | F6: NOTE: This worksheet is programmed to update for each year - use as checklist and note any placeholders or changes
F7: NOTE: Worksheet names in this file are programmed to update each year once each worksheet is accessed and a cell is selected
B8: =B6+1 -> 2 | C8: 'Model update'!B35:B38 | D8: ="Xt for "&E2 -> Xt for 2024-25 | E8: ="Updated "&$E$2&" value" -> Updated 2024-25 value
B10: =B8+1 -> 3 | C10: 'Model update'!B44:B48 | D10: Real Pre-tax WACC (rptw) | E10: ="Updated "&$E$2&" value" -> Updated 2024-25 value
B12: =B10+1 -> 4 | C12: 'Model update'!G18:G21 | D12: ="Pass Through Amount for "&E2 -> Pass Through Amount for 2024-25 | E12: ="Updated "&E2&" AP(t) value" -> Updated 2024-25 AP(t) value
B14: =B12+1 -> 5 | C14: ="Prop"&E2&"DistTar!E8:E96" -> Prop2024-25DistTar!E8:E96 | D14: =F2&" tariffs" -> 2023-24 tariffs | E14: ="Updated from "&F2&" model" -> Updated from 2023-24 model
B16: =B14+1 -> 6 | C16: ARS!B6:B12 | D16: =F2&" ARS tariffs" -> 2023-24 ARS tariffs | E16: ="Updated from "&F2&" model" -> Updated from 2023-24 model
A19: Multinet: | B19: 1 | C19: 'Model update'!F30:F34 | D19: ="Estimated safeguard mechanism amount for "&F2 -> Estimated safeguard mechanism amount for 2023-24 | E19: ="Updated "&F2&" estimated cf(t) value, used for the cf(t-1) value for "&E2 -> Updated 2023-24 estimated cf(t) value, used for the cf(t-1) value for 2024-25
B21: =B19+1 -> 2 | C21: 'Model update'!G30:G34 | D21: ="Actual safeguard mechanism amount for "&G2 -> Actual safeguard mechanism amount for 2022 | E21: ="Updated "&G2&" actual cf(t) value, used for the cf(t-2) value for "&E2 -> Updated 2022 actual cf(t) value, used for the cf(t-2) value for 2024-25
B23: =B21+1 -> 3 | C23: 'Model update'!F43:F47 | D23: ="Estimated abolishments amount for "&F2 -> Estimated abolishments amount for 2023-24 | E23: ="Updated "&F2&" estimated af(t) value, used for the af(t-1) value for "&E2 -> Updated 2023-24 estimated af(t) value, used for the af(t-1) value for 2024-25
B25: =B23+1 -> 4 | C25: 'Model update'!G43:G47 | D25: ="Actual abolishments amount for "&G2 -> Actual abolishments amount for 2022 | E25: ="Updated "&G2&" actual af(t) value, used for the af(t-2) value for "&E2 -> Updated 2022 actual af(t) value, used for the af(t-2) value for 2024-25
B27: =B25+1 -> 5 | C27: ="Prop"&E2&"DistTar!D8:D96" -> Prop2024-25DistTar!D8:D96 | D27: ="Proposed "&E2&" Tariffs" -> Proposed 2024-25 Tariffs
B29: =B27+1 -> 6 | C29: ="Prop"&E2&"DistTar!F8:F96" -> Prop2024-25DistTar!F8:F96 | D29: ="Actual "&G2&" Volumes" -> Actual 2022 Volumes
B31: =B29+1 -> 7 | C31: ARS!C6:C12 | D31: ="Proposed "&E2&" Ancillary Reference Services Charges" -> Proposed 2024-25 Ancillary Reference Services Charges | E31: Calculated using formula
A39: Reset | B39: 1 | C39: Whole workbook | D39: Colour formatting | E39: Adjusted colour formatting away from yellow to ensure yellow can be used to clearly identify confidential material
B41: =B39+1 -> 2 | C41: 'Model update' | D41: CPI | E41: Adjusted CPI to have CPI for whole period
B43: =B41+1 -> 3 | C43: 'Model update' | D43: WACC | E43: Adjusted WACC to have WACC for whole period
B45: =B43+1 -> 4 | C45: 'Model update' | D45: Pass-through adjustment | E45: Adjusted to have $$ amount as input and calculate adjustment factor
B47: =B45+1 -> 5 | C47: 'Model update' | D47: Safeguard mechanism | E47: Added safeguard mechanism adjustment
B49: =B47+1 -> 6 | C49: 'Model update' | D49: Abolishments adjustment | E49: Added abolishments adjustment
B51: =B49+1 -> 7 | C51: Prop2024-25DistTar | D51: Tariffs | E51: Updated tariff schedule
B53: =B51+1 -> 8 | C53: 2024-25TarContForm | D53: Tariff Control Formula | E53: Simplified, and updated for new adjustment factors. Added denominators for calculations in adjustments.
B55: =B53+1 -> 9 | C55: 2024-25RebalContForm | D55: Rebalancing constraint formulae | E55: Updated for new adjustment factors
B57: =B55+1 -> 10 | C57: ARS | D57: Ancillary reference services | E57: Updated for new tariff schedule

Sheet Model update
A3: Tariff Approval Template for | B3: Multinet
A5: Financial year | B5: 2024-25
A7: t | B7: =B5 -> 2024-25
A8: t-1 | B8: =LEFT(B7,4)-1&"-"&RIGHT(B7,2)-1 -> 2023-24
A9: t-2 | B9: =LEFT(B8,4)-1&"-"&RIGHT(B8,2)-1 -> 2022-23
A10: t-3 | B10: 2021-22
A13: Update orange highlighted cells where appropriate | D13: Darker orange cells should be overwritten with t-1 values before changing to new year
A15: CPI
D16: Pass Through Amounts : PT (t) | G16: AP(t) | H16: PT'(t)
A17: CPI Index December 2021 | B17: 121.3 | D17: =A44 -> 2023-24 | G17: 0
A18: CPI Index December 2022 | B18: 130.8 | D18: =A45 -> 2024-25 | G18: 0 | H18: =G18/'2024-25TarContForm'!$G$11 -> 0
A19: CPI Index December 2023 | B19: 136.1 | D19: 2025-26 | H19: =G19/'2024-25TarContForm'!$G$11 -> 0
A20: CPI Index December 2024 | B20: 140.08 | D20: 2026-27 | H20: =G20/'2024-25TarContForm'!$G$11 -> 0
A21: CPI Index December 2025 | B21: 144.1693622 | D21: 2027-28 | H21: =G21/'2024-25TarContForm'!$G$11 -> 0
A22: CPI Index December 2026 | B22: 148.3781054
D23: ="Pass Through Amount for "&B$5 -> Pass Through Amount for 2024-25 | H23: =(1+VLOOKUP($B$5,D17:H21,5,FALSE))/(1+VLOOKUP($B$8,D17:H21,5,FALSE))-1 -> 0
A24: ="CPI "&A44 -> CPI 2023-24 | B24: =B18/B17-1 -> 0.07831821929 | D24: The Pass Through Amount is to include an amount that reflects the time value of money between incurring the costs and recovering the costs
A25: ="CPI "&A45 -> CPI 2024-25 | B25: =B19/B18-1 -> 0.04051987768 | D25: and excludes any amounts already passed through in reference tariffs.
A26: CPI 2025-26 | B26: 0.02924320353
A27: CPI 2026-27 | B27: 0.02919304851
A28: CPI 2027-28 | B28: 0.02919304851 | D28: Safeguard Mechanism Amounts : C (t) | F28: Est. cf(t) | G28: Act. cf(t) | H28: C'(t)
D29: 2022-23 | F29: 0 | G29: 0
A30: ="CPI " &$B$8 -> CPI 2023-24 | B30: =VLOOKUP(A30,A24:B28,2,FALSE) -> 0.07831821929 | D30: =A44 -> 2023-24
A31: ="CPI " &$B$5 -> CPI 2024-25 | B31: =VLOOKUP(A31,A24:B28,2,FALSE) -> 0.04051987768 | D31: =A45 -> 2024-25 | H31: =(('Model update'!F30*(1+'Model update'!B45)*(1+'Model update'!B25))+(('Model update'!G29-'Model update'!F29)*(1+'Model update'!B44)*(1+'Model update'!B45)*(1+'Model update'!B24)*(1+'Model update'!B25)))/'2024-25TarContForm'!$G$12 -> 0
D32: 2025-26 | H32: =(('Model update'!F31*(1+'Model update'!B46)*(1+'Model update'!B26))+(('Model update'!G30-'Model update'!F30)*(1+'Model update'!B45)*(1+'Model update'!B46)*(1+'Model update'!B25)*(1+'Model update'!B26)))/'2024-25TarContForm'!$G$12 -> 0
D33: 2026-27 | H33: =(('Model update'!F32*(1+'Model update'!B47)*(1+'Model update'!B27))+(('Model update'!G31-'Model update'!F31)*(1+'Model update'!B46)*(1+'Model update'!B47)*(1+'Model update'!B26)*(1+'Model update'!B27)))/'2024-25TarContForm'!$G$12 -> 0
A34: ="Xt for "&B$5 -> Xt for 2024-25 | D34: 2027-28 | H34: =(('Model update'!F33*(1+'Model update'!B48)*(1+'Model update'!B28))+(('Model update'!G32-'Model update'!F32)*(1+'Model update'!B47)*(1+'Model update'!B48)*(1+'Model update'!B27)*(1+'Model update'!B28)))/'2024-25TarContForm'!$G$12 -> 0
A35: 2024-25 | B35: =C26-1.68847637347782% -> -0.01688476373
A36: 2025-26 | D36: ="Safeguard Mechanism Amount for "&B$5 -> Safeguard Mechanism Amount for 2024-25 | H36: =(1+VLOOKUP($B$5,D30:H34,5,FALSE))/(1+VLOOKUP($B$8,D30:H34,5,FALSE))-1 -> 0
A37: 2026-27
A38: 2027-28
A40: ="Xt for "&B$5 -> Xt for 2024-25 | B40: =VLOOKUP(B5,A35:B38,2,FALSE) -> -0.01688476373
D41: Abolishment True-up Amounts : A (t) | E41: Fcst af(t) | F41: Estimate af(t) | G41: Act. af(t) | H41: A'(t)
A42: Pre-tax WACC for distribution tariffs | D42: 2022-23 | E42: 0 | F42: 0 | G42: 0
D43: =A44 -> 2023-24 | E43: =E52*(1+H52) -> 3666696.066 | F43: 2711454.045
A44: 2023-24 | B44: 0.02829695663 | D44: =A45 -> 2024-25 | E44: =E53*(1+H52)*(1+H52) -> 4845504.847 | H44: =(((F43-'Model update'!E43)*(1+'Model update'!B45)*(1+'Model update'!B25))+(('Model update'!G42-'Model update'!F42)*(1+'Model update'!B44)*(1+'Model update'!B45)*(1+'Model update'!B24)*(1+'Model update'!B25)))/'2024-25TarContForm'!$G$13 -> -0.003602890965
A45: =A35 -> 2024-25 | B45: 0.02897719263 | D45: 2025-26 | E45: =E54*(1+H52)*(1+H52)*(1+H52) -> 6090014.788 | H45: =(((F44-'Model update'!E44)*(1+'Model update'!B46)*(1+'Model update'!B26))+(('Model update'!G43-'Model update'!F43)*(1+'Model update'!B45)*(1+'Model update'!B46)*(1+'Model update'!B25)*(1+'Model update'!B26)))/'2024-25TarContForm'!$G$13 -> -0.02809452779
A46: =A36 -> 2025-26 | D46: 2026-27 | E46: =E55*(1+H52)*(1+H52)*(1+H52)*(1+H52) -> 9478211.684 | H46: =(((F45-'Model update'!E45)*(1+'Model update'!B47)*(1+'Model update'!B27))+(('Model update'!G44-'Model update'!F44)*(1+'Model update'!B46)*(1+'Model update'!B47)*(1+'Model update'!B26)*(1+'Model update'!B27)))/'2024-25TarContForm'!$G$13 -> -0.0220798827
A47: 2026-27 | D47: 2027-28 | E47: =E56*(1+H52)*(1+H52)*(1+H52)*(1+H52)*(1+H52) -> 13037877.68 | H47: =(((F46-'Model update'!E46)*(1+'Model update'!B48)*(1+'Model update'!B28))+(('Model update'!G45-'Model update'!F45)*(1+'Model update'!B47)*(1+'Model update'!B48)*(1+'Model update'!B27)*(1+'Model update'!B28)))/'2024-25TarContForm'!$G$13 -> -0.03436408769
A48: 2027-28
D49: ="Abolishment True-up Amount for "&B$5 -> Abolishment True-up Amount for 2024-25 | H49: =(1+VLOOKUP($B$5,D43:H47,5,FALSE))/(1+VLOOKUP($B$8,D43:H47,5,FALSE))-1 -> -0.003602890965
A50: ="Pre-tax real WACC for "&B8 -> Pre-tax real WACC for 2023-24 | B50: =VLOOKUP(B8,A44:B48,2,FALSE) -> 0.02829695663
A51: ="Pre-tax real WACC for "&B5 -> Pre-tax real WACC for 2024-25 | B51: =VLOOKUP(B5,A44:B48,2,FALSE) -> 0.02897719263 | E51: Fcst af(t) $22-23 | H51: Forecast inflation
E52: 3562690.276 | H52: 0.02919304851
E53: 4574518.033
E54: 5586345.79
E55: 8447710.593
E56: 11290747.14

Sheet Prop2024-25DistTar
B1: Tariff Approval - Multinet | C1: Prop2024-25DistTar
B3: PROPOSED 2024-25 DISTRIBUTION TARIFFS
B5: Proposed tariff name | C5: Existing name | D5: Prop 2024-25 Tariff | E5: Exist 2023-24 Tariff | F5: Actual 2022-23 Volumes | G5: Prop Tar Revenue | H5: Exist Tar Revenue
B6: Tariff V Residential - Multinet Metro | C6: Tariff V Residential - Multinet Metro
B7: 1 July - 30 June | C7: 1 July - 30 June
B8: Fixed Charge | C8: Fixed Charge | D8: 0.1973 | E8: 0.1973 | F8: 692544 | G8: =D8*$F8*365 -> 49873209.89 | H8: =E8*$F8*365 -> 49873209.89
B9: 0 - 0.05GJ | C9: 0 - 0.05GJ | D9: 10.485 | E9: 9.5923 | F9: 9976671.188 | G9: =D9*$F9 -> 104605397.4 | H9: 95699223.03
B10: 0.05 - 0.1GJ | C10: 0.05 - 0.1GJ | D10: 6.9756 | E10: 6.4104 | F10: 6219346.498 | G10: 43383673.43 | H10: 39868498.79
B11: 0.1 -0.15GJ | C11: 0.1 -0.15GJ | D11: 3.1079 | E11: 3.1079 | F11: 4439680.756 | G11: 13798083.82 | H11: 13798083.82
B12: 0.15 - 0.25GJ | C12: 0.15 - 0.25GJ | D12: 1.5904 | E12: 1.5904 | F12: 6114964.125 | G12: 9725238.944 | H12: 9725238.944
B13: >0.25GJ | C13: >0.25GJ | D13: 1.1939 | E13: 1.1933 | F13: 9844173.526 | G13: 11752958.77 | H13: 11747052.27
B14: Tariff V Residential - Multinet Yarra Valley Towns | C14: Tariff V Residential - Multinet Yarra Valley Towns
B15: 1 July - 30 June | C15: 1 July - 30 June
B16: Fixed Charge | C16: Fixed Charge | D16: 0.1973 | E16: 0.1973 | F16: 16143 | G16: =D16*$F16*365 -> 1162530.073 | H16: =E16*$F16*365 -> 1162530.073
B17: 0 - 0.05GJ | C17: 0 - 0.05GJ | D17: 12.787 | E17: 11.751 | F17: 801632.1171 | G17: =D17*$F17 -> 10250469.88 | H17: =E17*$F17 -> 9419979.007
B18: 0.05 - 0.1GJ | C18: 0.05 - 0.1GJ | D18: 9.6423 | E18: 8.8613 | F18: 1254730.097 | G18: =D18*$F18 -> 12098484.02 | H18: 11118539.81
B19: 0.1 -0.15GJ | C19: 0.1 -0.15GJ | D19: 5.9367 | E19: 5.9367 | F19: 486011.516 | G19: =D19*$F19 -> 2885304.567 | H19: 2885304.567
B20: 0.15 - 0.25GJ | C20: 0.15 - 0.25GJ | D20: 4.7292 | E20: 4.7292 | F20: 1622066.962 | G20: =D20*$F20 -> 7671079.078 | H20: 7671079.078
B21: >0.25GJ | C21: >0.25GJ | D21: 4.4248 | E21: 4.4244 | F21: 1724381.997 | G21: =D21*$F21 -> 7630045.459 | H21: 7629355.706
B22: Tariff V Residential - Multinet Gippsland Towns | C22: Tariff V Residential - Multinet Gippsland Towns
B23: 1 July - 30 June | C23: 1 July - 30 June
B24: Fixed Charge | C24: Fixed Charge | D24: 0.1973 | E24: 0.1973 | F24: 5798 | G24: =D24*$F24*365 -> 417540.071 | H24: =E24*$F24*365 -> 417540.071
B25: 0 - 0.05GJ | C25: 0 - 0.05GJ | D25: 13.9635 | E25: 12.8321 | F25: 81874.41646 | G25: =D25*$F25 -> 1143253.414 | H25: =E25*$F25 -> 1050620.699
B26: 0.05 - 0.1GJ | C26: 0.05 - 0.1GJ | D26: 10.6134 | E26: 9.7537 | F26: 52783.09784 | G26: =D26*$F26 -> 560208.1307 | H26: 514830.5014
B27: 0.1 -0.15GJ | C27: 0.1 -0.15GJ | D27: 6.5997 | E27: 6.5997 | F27: 38085.58009 | G27: =D27*$F27 -> 251353.4029 | H27: 251353.4029
B28: 0.15 - 0.25GJ | C28: 0.15 - 0.25GJ | D28: 5.3037 | E28: 5.3037 | F28: 50283.51003 | G28: =D28*$F28 -> 266688.6521 | H28: 266688.6521
B29: >0.25GJ | C29: >0.25GJ | D29: 4.9678 | E29: 4.9678 | F29: 64638.11791 | G29: =D29*$F29 -> 321109.2421 | H29: 321109.2421
B30: Tariff V Non-Residential - Multinet Metro | C30: Tariff V Non-Residential - Multinet Metro
B31: 1 July - 30 June | C31: 1 July - 30 June
B32: Fixed Charge | C32: Fixed Charge | D32: 0.3254 | E32: 0.3254 | F32: 81 | G32: =D32*$F32*365 -> 9620.451 | H32: =E32*$F32*365 -> 9620.451
B33: 0 - 0.25GJ | C33: 0 - 0.25GJ | D33: 4.6845 | E33: 4.305 | F33: 4845.811188 | G33: =D33*$F33 -> 22700.20251 | H33: =E33*$F33 -> 20861.21717
B34: 0.25 - 1GJ | C34: 0.25 - 1GJ | D34: 2.7571 | E34: 2.5338 | F34: 6779.816047 | G34: =D34*$F34 -> 18692.63082 | H34: 17178.6979
B35: 1 - 1.5GJ | C35: 1 - 1.5GJ | D35: 1.4159 | E35: 1.4159 | F35: 2157.574447 | G35: =D35*$F35 -> 3054.90966 | H35: 3054.90966
B36: 1.5 - 5GJ | C36: 1.5 - 5GJ | D36: 0.8224 | E36: 0.8224 | F36: 8436.327419 | G36: =D36*$F36 -> 6938.035669 | H36: 6938.035669
B37: >5GJ | C37: >5GJ | D37: 0.2583 | E37: 0.2583 | F37: 9924.567121 | G37: =D37*$F37 -> 2563.515687 | H37: 2563.515687
B38: Tariff V Non-Residential - Multinet Yarra Valley Towns | C38: Tariff V Non-Residential - Multinet Yarra Valley Towns
B39: 1 July - 30 June | C39: 1 July - 30 June
B40: Fixed Charge | C40: Fixed Charge | D40: 0.3239 | E40: 0.3239 | F40: 7066 | G40: =D40*$F40*365 -> 835367.251 | H40: =E40*$F40*365 -> 835367.251
B41: 0 - 0.25GJ | C41: 0 - 0.25GJ | D41: 8.2713 | E41: 7.6015 | F41: 77924.37181 | G41: =D41*$F41 -> 644535.8565 | H41: =E41*$F41 -> 592342.1123
B42: 0.25 - 1GJ | C42: 0.25 - 1GJ | D42: 6.327 | E42: 5.8148 | F42: 39997.19491 | G42: =D42*$F42 -> 253062.2522 | H42: 232575.689
B43: 1 - 1.5GJ | C43: 1 - 1.5GJ | D43: 4.6292 | E43: 4.6292 | F43: 26542.98317 | G43: =D43*$F43 -> 122872.7777 | H43: 122872.7777
B44: 1.5 - 5GJ | C44: 1.5 - 5GJ | D44: 4.131 | E44: 4.131 | F44: 30260.10654 | G44: =D44*$F44 -> 125004.5001 | H44: 125004.5001
B45: >5GJ | C45: >5GJ | D45: 3.6776 | E45: 3.6738 | F45: 24597.97279 | G45: =D45*$F45 -> 90461.50473 | H45: 90368.03244
B46: Tariff V Non-Residential - Multinet Gippsland Towns | C46: Tariff V Non-Residential - Multinet Gippsland Towns
B47: 1 July - 30 June | C47: 1 July - 30 June
B48: Fixed Charge | C48: Fixed Charge | D48: 0.3254 | E48: 0.3254 | F48: 125 | G48: =D48*$F48*365 -> 14846.375 | H48: =E48*$F48*365 -> 14846.375
B49: 0 - 0.25GJ | C49: 0 - 0.25GJ | D49: 9.1395 | E49: 8.399 | F49: 7533.288351 | G49: =D49*$F49 -> 68850.48889 | H49: =E49*$F49 -> 63272.08886
B50: 0.25 - 1GJ | C50: 0.25 - 1GJ | D50: 7.0369 | E50: 6.467 | F50: 14642.90954 | G50: =D50*$F50 -> 103040.6902 | H50: 94695.69602
B51: 1 - 1.5GJ | C51: 1 - 1.5GJ | D51: 5.171 | E51: 5.171 | F51: 6367.36882 | G51: =D51*$F51 -> 32925.66417 | H51: 32925.66417
B52: 1.5 - 5GJ | C52: 1.5 - 5GJ | D52: 4.6614 | E52: 4.6614 | F52: 24547.8107 | G52: =D52*$F52 -> 114427.1648 | H52: 114427.1648
B53: >5GJ | C53: >5GJ | D53: 4.1752 | E53: 4.173 | F53: 33319.56179 | G53: =D53*$F53 -> 139115.8344 | H53: 139042.5314
B54: Tariff D - Multinet | C54: Tariff D - Multinet
B55: 0 - 50GJ | C55: 0 - 50GJ | D55: 698.2112 | E55: 671.0214 | F55: 3180.14 | G55: =D55*$F55 -> 2220409.366 | H55: =E55*$F55 -> 2133941.995
B56: > 50GJ | C56: > 50GJ | D56: 118.8039 | E56: 114.1775 | F56: 821.37 | G56: =D56*$F56 -> 97581.95934 | H56: =E56*$F56 -> 93781.97318
B57: Tariff D - Multinet South Gippsland | C57: Tariff D - Multinet South Gippsland
B58: 0 - 50GJ | C58: 0 - 50GJ | D58: 754.4139 | E58: 725.0355 | F58: 100 | G58: =D58*$F58 -> 75441.39 | H58: =E58*$F58 -> 72503.55
B59: > 50GJ | C59: > 50GJ | D59: 128.3494 | E59: 123.3513 | F59: 56.13 | G59: =D59*$F59 -> 7204.251822 | H59: =E59*$F59 -> 6923.708469
B60: Tariff L- Multinet Metro | C60: Tariff L- Multinet Non-Residential
B61: 1 July - 30 June | C61: 1 July - 30 June | G61: =D61*$F61*365 -> 0 | H61: =E61*$F61*365 -> 0
B62: < 5GJ | C62: < 5GJ | D62: 0.6026 | E62: 0.5791 | F62: 20269.17 | G62: =D62*$F62 -> 12214.20184 | H62: =E62*$F62 -> 11737.87635
B63: > 5GJ | C63: > 5GJ | D63: 0.147 | E63: 0.1413 | F63: 56434.92 | G63: =D63*$F63 -> 8295.93324 | H63: 7974.254196
B64: Rolling 12 month max [$/GJ (MHQ/d)] | C64: Rolling 12 month max [$/GJ (MHQ/d)] | D64: 0.6697 | E64: 0.6437 | F64: 45.10583333 | G64: =D64*$F64*365 -> 11025.69245 | H64: =E64*$F64*365 -> 10597.63809
B65: Peak Demand [$/GJ (MHQ/d)] | C65: Peak Demand [$/GJ (MHQ/d)] | D65: 2.0035 | E65: 1.9255 | F65: 39.56 | G65: =D65*$F65*122 -> 9669.53212 | H65: =E65*$F65*122 -> 9293.07916
B67: Total Revenue | C67: Total Revenue | G67: =SUM(G8:G65) -> 282846550.7 | H67: =SUM(H8:H65) -> 268284948.3

Sheet 2024-25TarContForm
B1: Tariff Approval - Multinet | F1: 2024-25TarContForm
B3: 2024-25 TARIFF CONTROL FORMULA
B6: Adjustments | F6: Denominators for adjustment factors
B9: CPI | C9: ='Model update'!B31 -> 0.04051987768
B10: X-factor | C10: ='Model update'!B40 -> -0.01688476373
B11: Pass-through Amount | C11: ='Model update'!H23 -> 0 | G11: =(1+C9)*(1-C10)*C23 -> 283869301.7
B12: Safeguard Mechanism Amount | C12: ='Model update'!H36 -> 0 | G12: =(1+C9)*(1-C10)*(1+C11)*C23 -> 283869301.7
B13: Abolishment True-up Amount | C13: ='Model update'!H49 -> -0.003602890965 | G13: =(1+C9)*(1-C10)*(1+C11)*(1+C12)*C23 -> 283869301.7
B18: 2024-25 Distribution price control
B20: Average price movement allowed | C20: =(1+C9)*(1-C10)*(1+C11)*(1+C12)*(1+C13) -> 1.054276631
B22: Proposed distribution tariff revenue | C22: =IF('Prop2024-25DistTar'!G67=0,"",'Prop2024-25DistTar'!G67) -> 282846550.7
B23: Existing distribution tariff revenue | C23: =IF('Prop2024-25DistTar'!H67=0,"",'Prop2024-25DistTar'!H67) -> 268284948.3
B24: Average price movement | C24: =IF(C22="","",C22/C23) -> 1.054276628
B26: =IF(C22="","",IF(C20>=C24,"DISTRIBUTION PRICE CONTROL FORMULA COMPLIANT","DISTRIBUTION PRICE CONTROL FORMULA BREACHED")) -> DISTRIBUTION PRICE CONTROL FORMULA COMPLIANT

Sheet 2024-25RebalContForm
B1: Tariff Approval - Multinet | C1: ='Model update'!B5&"RebalContForm" -> 2024-25RebalContForm
B3: 2024-25 REBALANCING CONTROL FORMULA
B6: Rebalancing control
B8: CPI | C8: ='2024-25TarContForm'!C9 -> 0.04051987768
B9: X-factor | C9: ='2024-25TarContForm'!C10 -> -0.01688476373
B10: Pass-through Amount | C10: ='2024-25TarContForm'!C11 -> 0
B11: Safeguard Mechanism Amount | C11: ='2024-25TarContForm'!C12 -> 0
B12: Abolishment True-up Amount | C12: ='2024-25TarContForm'!C13 -> -0.003602890965
B13: Y factor | C13: 0.02
B15: Rebalancing control | C15: =(1+C8)*(1-C9)*(1+C10)*(1+C11)*(1+C13) -> 1.079250586 | F15: The abolishment true-up amount is not accounted for under the mechanism in the AA.
B19: Rebalancing control summary
C20: Existing | D20: Proposed | E20: Movement | F20: Assessment
B21: =B34 -> Tariff V Residential - Multinet Metro | C21: =C55 -> 220711306.7 | D21: =C56 -> 233138562.3 | E21: =IF(C21=0,0,D21/C21) -> 1.056305477 | F21: =IF(E21=0,"",IF($C$15<=E21,"Breached","Compliant")) -> Compliant
B22: =B64 -> Tariff V Residential - Multinet Yarra Valley Towns | C22: =C85 -> 39886788.24 | D22: =C86 -> 41697913.08 | E22: 1.045406635 | F22: =IF(E22=0,"",IF($C$15<=E22,"Breached","Compliant")) -> Compliant
B23: =B94 -> Tariff V Residential - Multinet Gippsland Towns | C23: =C115 -> 2822142.569 | D23: =C116 -> 2960152.913 | E23: 1.048902683 | F23: Compliant
B24: =B124 -> Tariff V Non-Residential - Multinet Metro | C24: =C145 -> 60216.82708 | D24: =C146 -> 63569.74535 | E24: 1.055680753 | F24: Compliant
B25: =B154 -> Tariff V Non-Residential - Multinet Yarra Valley Towns | C25: =C175 -> 1998530.363 | D25: =C176 -> 2071304.142 | E25: 1.036413647 | F25: Compliant
B26: =B184 -> Tariff V Non-Residential - Multinet Gippsland Towns | C26: =C205 -> 459209.5202 | D26: =C206 -> 473206.2174 | E26: 1.03047998 | F26: Compliant
B27: =B214 -> Tariff D - Multinet | C27: =C229 -> 2227723.968 | D27: =C230 -> 2317991.325 | E27: 1.040519992 | F27: Compliant
B28: =B238 -> Tariff D - Multinet South Gippsland | C28: =C253 -> 79427.25847 | D28: =C254 -> 82645.64182 | E28: 1.040519885 | F28: Compliant
B29: Tariff L - Multinet | C29: =C282 -> 39602.8478 | D29: =C283 -> 41205.35965 | E29: 1.040464561 | F29: Compliant
C30: =SUM(C21:C29) -> 268284948.3 | D30: =SUM(D21:D29) -> 282846550.7 | E30: 1.054276628
B34: Tariff V Residential - Multinet Metro | C34: 1 | D34: 2 | E34: 3 | F34: 4 | G34: 5 | H34: 6
C35: 1 | D35: 2 | E35: 3 | F35: 4 | G35: 5 | H35: 6
B36: Distribution tariff | C36: Fixed | D36: Blk1 | E36: Blk2 | F36: Blk3 | G36: Blk4 | H36: Blk5
B38: Existing (1 Jan-31 Dec): Tariff V Residential - Multinet Metro | C38: =INDEX('Prop2024-25DistTar'!$E$8:$E$13,C$35) -> 0.1973 | D38: =INDEX('Prop2024-25DistTar'!$E$8:$E$13,D$35) -> 9.5923 | E38: =INDEX('Prop2024-25DistTar'!$E$8:$E$13,E$35) -> 6.4104 | F38: =INDEX('Prop2024-25DistTar'!$E$8:$E$13,F$35) -> 3.1079 | G38: =INDEX('Prop2024-25DistTar'!$E$8:$E$13,G$35) -> 1.5904 | H38: =INDEX('Prop2024-25DistTar'!$E$8:$E$13,H$35) -> 1.1933
B40: ="Proposed (1 Jan-31 Dec): "&B34 -> Proposed (1 Jan-31 Dec): Tariff V Residential - Multinet Metro | C40: =INDEX('Prop2024-25DistTar'!$D$8:$D$13,C$34) -> 0.1973 | D40: =INDEX('Prop2024-25DistTar'!$D$8:$D$13,D$34) -> 10.485 | E40: =INDEX('Prop2024-25DistTar'!$D$8:$D$13,E$34) -> 6.9756 | F40: =INDEX('Prop2024-25DistTar'!$D$8:$D$13,F$34) -> 3.1079 | G40: =INDEX('Prop2024-25DistTar'!$D$8:$D$13,G$34) -> 1.5904 | H40: =INDEX('Prop2024-25DistTar'!$D$8:$D$13,H$34) -> 1.1939
B42: Distribution volumes (actual) | C42: Fixed | D42: Blk1 | E42: Blk2 | F42: Blk3 | G42: Blk4 | H42: Blk5
B44: =B38 -> Existing (1 Jan-31 Dec): Tariff V Residential - Multinet Metro | C44: =INDEX('Prop2024-25DistTar'!$F$8:$F$13,C$34) -> 692544 | D44: =INDEX('Prop2024-25DistTar'!$F$8:$F$13,D$34) -> 9976671.188 | E44: =INDEX('Prop2024-25DistTar'!$F$8:$F$13,E$34) -> 6219346.498 | F44: =INDEX('Prop2024-25DistTar'!$F$8:$F$13,F$34) -> 4439680.756 | G44: =INDEX('Prop2024-25DistTar'!$F$8:$F$13,G$34) -> 6114964.125 | H44: =INDEX('Prop2024-25DistTar'!$F$8:$F$13,H$34) -> 9844173.526
B46: =B40 -> Proposed (1 Jan-31 Dec): Tariff V Residential - Multinet Metro | C46: =INDEX('Prop2024-25DistTar'!$F$8:$F$13,C$34) -> 692544 | D46: =INDEX('Prop2024-25DistTar'!$F$8:$F$13,D$34) -> 9976671.188 | E46: =INDEX('Prop2024-25DistTar'!$F$8:$F$13,E$34) -> 6219346.498 | F46: =INDEX('Prop2024-25DistTar'!$F$8:$F$13,F$34) -> 4439680.756 | G46: =INDEX('Prop2024-25DistTar'!$F$8:$F$13,G$34) -> 6114964.125 | H46: =INDEX('Prop2024-25DistTar'!$F$8:$F$13,H$34) -> 9844173.526
B48: Distribution revenue | C48: Fixed | D48: Blk1 | E48: Blk2 | F48: Blk3 | G48: Blk4 | H48: Blk5
B50: =B44 -> Existing (1 Jan-31 Dec): Tariff V Residential - Multinet Metro | C50: =INDEX('Prop2024-25DistTar'!$H$8:$H$13,C$35) -> 49873209.89 | D50: =INDEX('Prop2024-25DistTar'!$H$8:$H$13,D$35) -> 95699223.03 | E50: =INDEX('Prop2024-25DistTar'!$H$8:$H$13,E$35) -> 39868498.79 | F50: =INDEX('Prop2024-25DistTar'!$H$8:$H$13,F$35) -> 13798083.82 | G50: =INDEX('Prop2024-25DistTar'!$H$8:$H$13,G$35) -> 9725238.944 | H50: =INDEX('Prop2024-25DistTar'!$H$8:$H$13,H$35) -> 11747052.27
B52: =B46 -> Proposed (1 Jan-31 Dec): Tariff V Residential - Multinet Metro | C52: =INDEX('Prop2024-25DistTar'!$G$8:$G$13,C$34) -> 49873209.89 | D52: =INDEX('Prop2024-25DistTar'!$G$8:$G$13,D$34) -> 104605397.4 | E52: =INDEX('Prop2024-25DistTar'!$G$8:$G$13,E$34) -> 43383673.43 | F52: =INDEX('Prop2024-25DistTar'!$G$8:$G$13,F$34) -> 13798083.82 | G52: =INDEX('Prop2024-25DistTar'!$G$8:$G$13,G$34) -> 9725238.944 | H52: =INDEX('Prop2024-25DistTar'!$G$8:$G$13,H$34) -> 11752958.77
B54: Revenue | C54: Total
B55: =B50 -> Existing (1 Jan-31 Dec): Tariff V Residential - Multinet Metro | C55: =SUM(C50:H50) -> 220711306.7
B56: =B52 -> Proposed (1 Jan-31 Dec): Tariff V Residential - Multinet Metro | C56: =SUM(C52:H52) -> 233138562.3
B58: Average price movement | C58: =IF(C56=0,"",C56/C55) -> 1.056305477
B60: =IF(C58="","",IF(C58<=$C$15,"REBALANCING CONTROL COMPLIANT","REBALANCING CONTROL BREACHED")) -> REBALANCING CONTROL COMPLIANT
B64: Tariff V Residential - Multinet Yarra Valley Towns | C64: 1 | D64: 2 | E64: 3 | F64: 4 | G64: 5 | H64: 6
C65: 1 | D65: 2 | E65: 3 | F65: 4 | G65: 5 | H65: 6
B66: Distribution tariff | C66: Fixed | D66: Blk1 | E66: Blk2 | F66: Blk3 | G66: Blk4 | H66: Blk5
B68: Existing (1 Jan-31 Dec): Tariff V Residential - Multinet Yarra Valley Towns | C68: =INDEX('Prop2024-25DistTar'!$E$16:$E$21,C$35) -> 0.1973 | D68: =INDEX('Prop2024-25DistTar'!$E$16:$E$21,D$35) -> 11.751 | E68: =INDEX('Prop2024-25DistTar'!$E$16:$E$21,E$35) -> 8.8613 | F68: =INDEX('Prop2024-25DistTar'!$E$16:$E$21,F$35) -> 5.9367 | G68: =INDEX('Prop2024-25DistTar'!$E$16:$E$21,G$35) -> 4.7292 | H68: =INDEX('Prop2024-25DistTar'!$E$16:$E$21,H$35) -> 4.4244
B70: ="Proposed (1 Jan-31 Dec): "&B64 -> Proposed (1 Jan-31 Dec): Tariff V Residential - Multinet Yarra Valley Towns | C70: =INDEX('Prop2024-25DistTar'!$D$16:$D$21,C$34) -> 0.1973 | D70: =INDEX('Prop2024-25DistTar'!$D$16:$D$21,D$34) -> 12.787 | E70: =INDEX('Prop2024-25DistTar'!$D$16:$D$21,E$34) -> 9.6423 | F70: =INDEX('Prop2024-25DistTar'!$D$16:$D$21,F$34) -> 5.9367 | G70: =INDEX('Prop2024-25DistTar'!$D$16:$D$21,G$34) -> 4.7292 | H70: =INDEX('Prop2024-25DistTar'!$D$16:$D$21,H$34) -> 4.4248
B72: Distribution volumes (actual) | C72: Fixed | D72: Blk1 | E72: Blk2 | F72: Blk3 | G72: Blk4 | H72: Blk5
B74: =B68 -> Existing (1 Jan-31 Dec): Tariff V Residential - Multinet Yarra Valley Towns | C74: =INDEX('Prop2024-25DistTar'!$F$16:$F$21,C$34) -> 16143 | D74: =INDEX('Prop2024-25DistTar'!$F$16:$F$21,D$34) -> 801632.1171 | E74: =INDEX('Prop2024-25DistTar'!$F$16:$F$21,E$34) -> 1254730.097 | F74: =INDEX('Prop2024-25DistTar'!$F$16:$F$21,F$34) -> 486011.516 | G74: =INDEX('Prop2024-25DistTar'!$F$16:$F$21,G$34) -> 1622066.962 | H74: =INDEX('Prop2024-25DistTar'!$F$16:$F$21,H$34) -> 1724381.997
B76: =B70 -> Proposed (1 Jan-31 Dec): Tariff V Residential - Multinet Yarra Valley Towns | C76: =INDEX('Prop2024-25DistTar'!$F$16:$F$21,C$34) -> 16143 | D76: =INDEX('Prop2024-25DistTar'!$F$16:$F$21,D$34) -> 801632.1171 | E76: =INDEX('Prop2024-25DistTar'!$F$16:$F$21,E$34) -> 1254730.097 | F76: =INDEX('Prop2024-25DistTar'!$F$16:$F$21,F$34) -> 486011.516 | G76: =INDEX('Prop2024-25DistTar'!$F$16:$F$21,G$34) -> 1622066.962 | H76: =INDEX('Prop2024-25DistTar'!$F$16:$F$21,H$34) -> 1724381.997
B78: Distribution revenue | C78: Fixed | D78: Blk1 | E78: Blk2 | F78: Blk3 | G78: Blk4 | H78: Blk5
B80: =B74 -> Existing (1 Jan-31 Dec): Tariff V Residential - Multinet Yarra Valley Towns | C80: =INDEX('Prop2024-25DistTar'!$H$16:$H$21,C$35) -> 1162530.073 | D80: =INDEX('Prop2024-25DistTar'!$H$16:$H$21,D$35) -> 9419979.007 | E80: =INDEX('Prop2024-25DistTar'!$H$16:$H$21,E$35) -> 11118539.81 | F80: =INDEX('Prop2024-25DistTar'!$H$16:$H$21,F$35) -> 2885304.567 | G80: =INDEX('Prop2024-25DistTar'!$H$16:$H$21,G$35) -> 7671079.078 | H80: =INDEX('Prop2024-25DistTar'!$H$16:$H$21,H$35) -> 7629355.706
B82: =B76 -> Proposed (1 Jan-31 Dec): Tariff V Residential - Multinet Yarra Valley Towns | C82: =INDEX('Prop2024-25DistTar'!$G$16:$G$21,C$34) -> 1162530.073 | D82: =INDEX('Prop2024-25DistTar'!$G$16:$G$21,D$34) -> 10250469.88 | E82: =INDEX('Prop2024-25DistTar'!$G$16:$G$21,E$34) -> 12098484.02 | F82: =INDEX('Prop2024-25DistTar'!$G$16:$G$21,F$34) -> 2885304.567 | G82: =INDEX('Prop2024-25DistTar'!$G$16:$G$21,G$34) -> 7671079.078 | H82: =INDEX('Prop2024-25DistTar'!$G$16:$G$21,H$34) -> 7630045.459
B84: Revenue | C84: Total
B85: =B80 -> Existing (1 Jan-31 Dec): Tariff V Residential - Multinet Yarra Valley Towns | C85: =SUM(C80:H80) -> 39886788.24
B86: =B82 -> Proposed (1 Jan-31 Dec): Tariff V Residential - Multinet Yarra Valley Towns | C86: =SUM(C82:H82) -> 41697913.08
B88: Average price movement | C88: =IF(C86=0,"",C86/C85) -> 1.045406635
B90: =IF(C88="","",IF(C88<=$C$15,"REBALANCING CONTROL COMPLIANT","REBALANCING CONTROL BREACHED")) -> REBALANCING CONTROL COMPLIANT
B94: Tariff V Residential - Multinet Gippsland Towns | C94: 1 | D94: 2 | E94: 3 | F94: 4 | G94: 5 | H94: 6
C95: 1 | D95: 2 | E95: 3 | F95: 4 | G95: 5 | H95: 6
B96: Distribution tariff | C96: Fixed | D96: Blk1 | E96: Blk2 | F96: Blk3 | G96: Blk4 | H96: Blk5
B98: Existing (1 Jan-31 Dec): Tariff V Residential - Multinet Gippsland Towns | C98: =INDEX('Prop2024-25DistTar'!$E$24:$E$29,C$35) -> 0.1973 | D98: =INDEX('Prop2024-25DistTar'!$E$24:$E$29,D$35) -> 12.8321 | E98: =INDEX('Prop2024-25DistTar'!$E$24:$E$29,E$35) -> 9.7537 | F98: =INDEX('Prop2024-25DistTar'!$E$24:$E$29,F$35) -> 6.5997 | G98: =INDEX('Prop2024-25DistTar'!$E$24:$E$29,G$35) -> 5.3037 | H98: =INDEX('Prop2024-25DistTar'!$E$24:$E$29,H$35) -> 4.9678
B100: ="Proposed (1 Jan-31 Dec): "&B94 -> Proposed (1 Jan-31 Dec): Tariff V Residential - Multinet Gippsland Towns | C100: =INDEX('Prop2024-25DistTar'!$D$24:$D$29,C$34) -> 0.1973 | D100: =INDEX('Prop2024-25DistTar'!$D$24:$D$29,D$34) -> 13.9635 | E100: =INDEX('Prop2024-25DistTar'!$D$24:$D$29,E$34) -> 10.6134 | F100: =INDEX('Prop2024-25DistTar'!$D$24:$D$29,F$34) -> 6.5997 | G100: =INDEX('Prop2024-25DistTar'!$D$24:$D$29,G$34) -> 5.3037 | H100: =INDEX('Prop2024-25DistTar'!$D$24:$D$29,H$34) -> 4.9678
B102: Distribution volumes (actual) | C102: Fixed | D102: Blk1 | E102: Blk2 | F102: Blk3 | G102: Blk4 | H102: Blk5
B104: =B98 -> Existing (1 Jan-31 Dec): Tariff V Residential - Multinet Gippsland Towns | C104: =INDEX('Prop2024-25DistTar'!$F$24:$F$29,C$34) -> 5798 | D104: =INDEX('Prop2024-25DistTar'!$F$24:$F$29,D$34) -> 81874.41646 | E104: =INDEX('Prop2024-25DistTar'!$F$24:$F$29,E$34) -> 52783.09784 | F104: =INDEX('Prop2024-25DistTar'!$F$24:$F$29,F$34) -> 38085.58009 | G104: =INDEX('Prop2024-25DistTar'!$F$24:$F$29,G$34) -> 50283.51003 | H104: =INDEX('Prop2024-25DistTar'!$F$24:$F$29,H$34) -> 64638.11791
B106: =B100 -> Proposed (1 Jan-31 Dec): Tariff V Residential - Multinet Gippsland Towns | C106: =INDEX('Prop2024-25DistTar'!$F$24:$F$29,C$34) -> 5798 | D106: =INDEX('Prop2024-25DistTar'!$F$24:$F$29,D$34) -> 81874.41646 | E106: =INDEX('Prop2024-25DistTar'!$F$24:$F$29,E$34) -> 52783.09784 | F106: =INDEX('Prop2024-25DistTar'!$F$24:$F$29,F$34) -> 38085.58009 | G106: =INDEX('Prop2024-25DistTar'!$F$24:$F$29,G$34) -> 50283.51003 | H106: =INDEX('Prop2024-25DistTar'!$F$24:$F$29,H$34) -> 64638.11791
B108: Distribution revenue | C108: Fixed | D108: Blk1 | E108: Blk2 | F108: Blk3 | G108: Blk4 | H108: Blk5
B110: =B104 -> Existing (1 Jan-31 Dec): Tariff V Residential - Multinet Gippsland Towns | C110: =INDEX('Prop2024-25DistTar'!$H$24:$H$29,C$35) -> 417540.071 | D110: =INDEX('Prop2024-25DistTar'!$H$24:$H$29,D$35) -> 1050620.699 | E110: =INDEX('Prop2024-25DistTar'!$H$24:$H$29,E$35) -> 514830.5014 | F110: =INDEX('Prop2024-25DistTar'!$H$24:$H$29,F$35) -> 251353.4029 | G110: =INDEX('Prop2024-25DistTar'!$H$24:$H$29,G$35) -> 266688.6521 | H110: =INDEX('Prop2024-25DistTar'!$H$24:$H$29,H$35) -> 321109.2421
B112: =B106 -> Proposed (1 Jan-31 Dec): Tariff V Residential - Multinet Gippsland Towns | C112: =INDEX('Prop2024-25DistTar'!$G$24:$G$29,C$34) -> 417540.071 | D112: =INDEX('Prop2024-25DistTar'!$G$24:$G$29,D$34) -> 1143253.414 | E112: =INDEX('Prop2024-25DistTar'!$G$24:$G$29,E$34) -> 560208.1307 | F112: =INDEX('Prop2024-25DistTar'!$G$24:$G$29,F$34) -> 251353.4029 | G112: =INDEX('Prop2024-25DistTar'!$G$24:$G$29,G$34) -> 266688.6521 | H112: =INDEX('Prop2024-25DistTar'!$G$24:$G$29,H$34) -> 321109.2421
B114: Revenue | C114: Total
B115: =B110 -> Existing (1 Jan-31 Dec): Tariff V Residential - Multinet Gippsland Towns | C115: =SUM(C110:H110) -> 2822142.569
B116: =B112 -> Proposed (1 Jan-31 Dec): Tariff V Residential - Multinet Gippsland Towns | C116: =SUM(C112:H112) -> 2960152.913
B118: Average price movement | C118: =IF(C116=0,"",C116/C115) -> 1.048902683
B120: =IF(C118="","",IF(C118<=$C$15,"REBALANCING CONTROL COMPLIANT","REBALANCING CONTROL BREACHED")) -> REBALANCING CONTROL COMPLIANT
B124: Tariff V Non-Residential - Multinet Metro | C124: 1 | D124: 2 | E124: 3 | F124: 4 | G124: 5
C125: 1 | D125: 2 | E125: 3 | F125: 4 | G125: 5 | H125: 6
B126: Distribution tariff | C126: Fixed | D126: Blk1 | E126: Blk2 | F126: Blk3 | G126: Blk4 | H126: Blk5
B128: Existing (1 Jan - 31 Dec): Tariff V Non-Residential - Multinet Metro | C128: =INDEX('Prop2024-25DistTar'!$E$32:$E$37,C$35) -> 0.3254 | D128: =INDEX('Prop2024-25DistTar'!$E$32:$E$37,D$35) -> 4.305 | E128: =INDEX('Prop2024-25DistTar'!$E$32:$E$37,E$35) -> 2.5338 | F128: =INDEX('Prop2024-25DistTar'!$E$32:$E$37,F$35) -> 1.4159 | G128: =INDEX('Prop2024-25DistTar'!$E$32:$E$37,G$35) -> 0.8224 | H128: =INDEX('Prop2024-25DistTar'!$E$32:$E$37,H$35) -> 0.2583
B130: ="Proposed (1 Jan-31 Dec): "&B124 -> Proposed (1 Jan-31 Dec): Tariff V Non-Residential - Multinet Metro | C130: =INDEX('Prop2024-25DistTar'!$D$32:$D$37,C$34) -> 0.3254 | D130: =INDEX('Prop2024-25DistTar'!$D$32:$D$37,D$34) -> 4.6845 | E130: =INDEX('Prop2024-25DistTar'!$D$32:$D$37,E$34) -> 2.7571 | F130: =INDEX('Prop2024-25DistTar'!$D$32:$D$37,F$34) -> 1.4159 | G130: =INDEX('Prop2024-25DistTar'!$D$32:$D$37,G$34) -> 0.8224 | H130: =INDEX('Prop2024-25DistTar'!$D$32:$D$37,H$34) -> 0.2583
B132: Distribution volumes (actual) | C132: Fixed | D132: Blk1 | E132: Blk2 | F132: Blk3 | G132: Blk4 | H132: Blk5
B134: =B128 -> Existing (1 Jan - 31 Dec): Tariff V Non-Residential - Multinet Metro | C134: =INDEX('Prop2024-25DistTar'!$F$32:$F$37,C$34) -> 81 | D134: =INDEX('Prop2024-25DistTar'!$F$32:$F$37,D$34) -> 4845.811188 | E134: =INDEX('Prop2024-25DistTar'!$F$32:$F$37,E$34) -> 6779.816047 | F134: =INDEX('Prop2024-25DistTar'!$F$32:$F$37,F$34) -> 2157.574447 | G134: =INDEX('Prop2024-25DistTar'!$F$32:$F$37,G$34) -> 8436.327419 | H134: =INDEX('Prop2024-25DistTar'!$F$32:$F$37,H$34) -> 9924.567121
B136: =B130 -> Proposed (1 Jan-31 Dec): Tariff V Non-Residential - Multinet Metro | C136: =INDEX('Prop2024-25DistTar'!$F$32:$F$37,C$34) -> 81 | D136: =INDEX('Prop2024-25DistTar'!$F$32:$F$37,D$34) -> 4845.811188 | E136: =INDEX('Prop2024-25DistTar'!$F$32:$F$37,E$34) -> 6779.816047 | F136: =INDEX('Prop2024-25DistTar'!$F$32:$F$37,F$34) -> 2157.574447 | G136: =INDEX('Prop2024-25DistTar'!$F$32:$F$37,G$34) -> 8436.327419 | H136: =INDEX('Prop2024-25DistTar'!$F$32:$F$37,H$34) -> 9924.567121
B138: Distribution revenue | C138: Fixed | D138: Blk1 | E138: Blk2 | F138: Blk3 | G138: Blk4 | H138: Blk5
B140: =B134 -> Existing (1 Jan - 31 Dec): Tariff V Non-Residential - Multinet Metro | C140: =INDEX('Prop2024-25DistTar'!$H$32:$H$37,C$35) -> 9620.451 | D140: =INDEX('Prop2024-25DistTar'!$H$32:$H$37,D$35) -> 20861.21717 | E140: =INDEX('Prop2024-25DistTar'!$H$32:$H$37,E$35) -> 17178.6979 | F140: =INDEX('Prop2024-25DistTar'!$H$32:$H$37,F$35) -> 3054.90966 | G140: =INDEX('Prop2024-25DistTar'!$H$32:$H$37,G$35) -> 6938.035669 | H140: =INDEX('Prop2024-25DistTar'!$H$32:$H$37,H$35) -> 2563.515687
B142: =B136 -> Proposed (1 Jan-31 Dec): Tariff V Non-Residential - Multinet Metro | C142: =INDEX('Prop2024-25DistTar'!$G$32:$G$37,C$34) -> 9620.451 | D142: =INDEX('Prop2024-25DistTar'!$G$32:$G$37,D$34) -> 22700.20251 | E142: =INDEX('Prop2024-25DistTar'!$G$32:$G$37,E$34) -> 18692.63082 | F142: =INDEX('Prop2024-25DistTar'!$G$32:$G$37,F$34) -> 3054.90966 | G142: =INDEX('Prop2024-25DistTar'!$G$32:$G$37,G$34) -> 6938.035669 | H142: =INDEX('Prop2024-25DistTar'!$G$32:$G$37,H$34) -> 2563.515687
B144: Revenue | C144: Total
B145: =B140 -> Existing (1 Jan - 31 Dec): Tariff V Non-Residential - Multinet Metro | C145: =SUM(C139:H140) -> 60216.82708
B146: =B142 -> Proposed (1 Jan-31 Dec): Tariff V Non-Residential - Multinet Metro | C146: =SUM(C141:H142) -> 63569.74535
B148: Average price movement | C148: =IF(C146=0,"",C146/C145) -> 1.055680753
B150: =IF(C148="","",IF(C148<=$C$15,"REBALANCING CONTROL COMPLIANT","REBALANCING CONTROL BREACHED")) -> REBALANCING CONTROL COMPLIANT
B154: Tariff V Non-Residential - Multinet Yarra Valley Towns | C154: 1 | D154: 2 | E154: 3 | F154: 4 | G154: 5
C155: 1 | D155: 2 | E155: 3 | F155: 4 | G155: 5 | H155: 6
B156: Distribution tariff | C156: Fixed | D156: Blk1 | E156: Blk2 | F156: Blk3 | G156: Blk4 | H156: Blk5
B158: Existing (1 Jan - 31 Dec): Tariff V Non-Residential - Multinet Yarra Valley Towns | C158: =INDEX('Prop2024-25DistTar'!$E$40:$E$45,C$35) -> 0.3239 | D158: =INDEX('Prop2024-25DistTar'!$E$40:$E$45,D$35) -> 7.6015 | E158: =INDEX('Prop2024-25DistTar'!$E$40:$E$45,E$35) -> 5.8148 | F158: =INDEX('Prop2024-25DistTar'!$E$40:$E$45,F$35) -> 4.6292 | G158: =INDEX('Prop2024-25DistTar'!$E$40:$E$45,G$35) -> 4.131 | H158: =INDEX('Prop2024-25DistTar'!$E$40:$E$45,H$35) -> 3.6738
B160: ="Proposed (1 Jan-31 Dec): "&B154 -> Proposed (1 Jan-31 Dec): Tariff V Non-Residential - Multinet Yarra Valley Towns | C160: =INDEX('Prop2024-25DistTar'!$D$40:$D$45,C$34) -> 0.3239 | D160: =INDEX('Prop2024-25DistTar'!$D$40:$D$45,D$34) -> 8.2713 | E160: =INDEX('Prop2024-25DistTar'!$D$40:$D$45,E$34) -> 6.327 | F160: =INDEX('Prop2024-25DistTar'!$D$40:$D$45,F$34) -> 4.6292 | G160: =INDEX('Prop2024-25DistTar'!$D$40:$D$45,G$34) -> 4.131 | H160: =INDEX('Prop2024-25DistTar'!$D$40:$D$45,H$34) -> 3.6776
B162: Distribution volumes (actual) | C162: Fixed | D162: Blk1 | E162: Blk2 | F162: Blk3 | G162: Blk4 | H162: Blk5
B164: =B158 -> Existing (1 Jan - 31 Dec): Tariff V Non-Residential - Multinet Yarra Valley Towns | C164: =INDEX('Prop2024-25DistTar'!$F$40:$F$45,C$34) -> 7066 | D164: =INDEX('Prop2024-25DistTar'!$F$40:$F$45,D$34) -> 77924.37181 | E164: =INDEX('Prop2024-25DistTar'!$F$40:$F$45,E$34) -> 39997.19491 | F164: =INDEX('Prop2024-25DistTar'!$F$40:$F$45,F$34) -> 26542.98317 | G164: =INDEX('Prop2024-25DistTar'!$F$40:$F$45,G$34) -> 30260.10654 | H164: =INDEX('Prop2024-25DistTar'!$F$40:$F$45,H$34) -> 24597.97279
B166: =B160 -> Proposed (1 Jan-31 Dec): Tariff V Non-Residential - Multinet Yarra Valley Towns | C166: =INDEX('Prop2024-25DistTar'!$F$40:$F$45,C$34) -> 7066 | D166: =INDEX('Prop2024-25DistTar'!$F$40:$F$45,D$34) -> 77924.37181 | E166: =INDEX('Prop2024-25DistTar'!$F$40:$F$45,E$34) -> 39997.19491 | F166: =INDEX('Prop2024-25DistTar'!$F$40:$F$45,F$34) -> 26542.98317 | G166: =INDEX('Prop2024-25DistTar'!$F$40:$F$45,G$34) -> 30260.10654 | H166: =INDEX('Prop2024-25DistTar'!$F$40:$F$45,H$34) -> 24597.97279
B168: Distribution revenue | C168: Fixed | D168: Blk1 | E168: Blk2 | F168: Blk3 | G168: Blk4 | H168: Blk5
B170: =B164 -> Existing (1 Jan - 31 Dec): Tariff V Non-Residential - Multinet Yarra Valley Towns | C170: =INDEX('Prop2024-25DistTar'!$H$40:$H$45,C$35) -> 835367.251 | D170: =INDEX('Prop2024-25DistTar'!$H$40:$H$45,D$35) -> 592342.1123 | E170: =INDEX('Prop2024-25DistTar'!$H$40:$H$45,E$35) -> 232575.689 | F170: =INDEX('Prop2024-25DistTar'!$H$40:$H$45,F$35) -> 122872.7777 | G170: =INDEX('Prop2024-25DistTar'!$H$40:$H$45,G$35) -> 125004.5001 | H170: =INDEX('Prop2024-25DistTar'!$H$40:$H$45,H$35) -> 90368.03244
B172: =B166 -> Proposed (1 Jan-31 Dec): Tariff V Non-Residential - Multinet Yarra Valley Towns | C172: =INDEX('Prop2024-25DistTar'!$G$40:$G$45,C$34) -> 835367.251 | D172: =INDEX('Prop2024-25DistTar'!$G$40:$G$45,D$34) -> 644535.8565 | E172: =INDEX('Prop2024-25DistTar'!$G$40:$G$45,E$34) -> 253062.2522 | F172: =INDEX('Prop2024-25DistTar'!$G$40:$G$45,F$34) -> 122872.7777 | G172: =INDEX('Prop2024-25DistTar'!$G$40:$G$45,G$34) -> 125004.5001 | H172: =INDEX('Prop2024-25DistTar'!$G$40:$G$45,H$34) -> 90461.50473
B174: Revenue | C174: Total
B175: =B170 -> Existing (1 Jan - 31 Dec): Tariff V Non-Residential - Multinet Yarra Valley Towns | C175: =SUM(C169:H170) -> 1998530.363
B176: =B172 -> Proposed (1 Jan-31 Dec): Tariff V Non-Residential - Multinet Yarra Valley Towns | C176: =SUM(C171:H172) -> 2071304.142
B178: Average price movement | C178: =IF(C176=0,"",C176/C175) -> 1.036413647
B180: =IF(C178="","",IF(C178<=$C$15,"REBALANCING CONTROL COMPLIANT","REBALANCING CONTROL BREACHED")) -> REBALANCING CONTROL COMPLIANT
B184: Tariff V Non-Residential - Multinet Gippsland Towns | C184: 1 | D184: 2 | E184: 3 | F184: 4 | G184: 5
C185: 1 | D185: 2 | E185: 3 | F185: 4 | G185: 5 | H185: 6
B186: Distribution tariff | C186: Fixed | D186: Blk1 | E186: Blk2 | F186: Blk3 | G186: Blk4 | H186: Blk5
B188: Existing (1 Jan - 31 Dec): Tariff V Non-Residential - Multinet Gippsland Towns | C188: =INDEX('Prop2024-25DistTar'!$E$48:$E$53,C$35) -> 0.3254 | D188: =INDEX('Prop2024-25DistTar'!$E$48:$E$53,D$35) -> 8.399 | E188: =INDEX('Prop2024-25DistTar'!$E$48:$E$53,E$35) -> 6.467 | F188: =INDEX('Prop2024-25DistTar'!$E$48:$E$53,F$35) -> 5.171 | G188: =INDEX('Prop2024-25DistTar'!$E$48:$E$53,G$35) -> 4.6614 | H188: =INDEX('Prop2024-25DistTar'!$E$48:$E$53,H$35) -> 4.173
B190: ="Proposed (1 Jan-31 Dec): "&B184 -> Proposed (1 Jan-31 Dec): Tariff V Non-Residential - Multinet Gippsland Towns | C190: =INDEX('Prop2024-25DistTar'!$D$48:$D$53,C$34) -> 0.3254 | D190: =INDEX('Prop2024-25DistTar'!$D$48:$D$53,D$34) -> 9.1395 | E190: =INDEX('Prop2024-25DistTar'!$D$48:$D$53,E$34) -> 7.0369 | F190: =INDEX('Prop2024-25DistTar'!$D$48:$D$53,F$34) -> 5.171 | G190: =INDEX('Prop2024-25DistTar'!$D$48:$D$53,G$34) -> 4.6614 | H190: =INDEX('Prop2024-25DistTar'!$D$48:$D$53,H$34) -> 4.1752
B192: Distribution volumes (actual) | C192: Fixed | D192: Blk1 | E192: Blk2 | F192: Blk3 | G192: Blk4 | H192: Blk5
B194: =B188 -> Existing (1 Jan - 31 Dec): Tariff V Non-Residential - Multinet Gippsland Towns | C194: =INDEX('Prop2024-25DistTar'!$F$48:$F$53,C$34) -> 125 | D194: =INDEX('Prop2024-25DistTar'!$F$48:$F$53,D$34) -> 7533.288351 | E194: =INDEX('Prop2024-25DistTar'!$F$48:$F$53,E$34) -> 14642.90954 | F194: =INDEX('Prop2024-25DistTar'!$F$48:$F$53,F$34) -> 6367.36882 | G194: =INDEX('Prop2024-25DistTar'!$F$48:$F$53,G$34) -> 24547.8107 | H194: =INDEX('Prop2024-25DistTar'!$F$48:$F$53,H$34) -> 33319.56179
B196: =B190 -> Proposed (1 Jan-31 Dec): Tariff V Non-Residential - Multinet Gippsland Towns | C196: =INDEX('Prop2024-25DistTar'!$F$48:$F$53,C$34) -> 125 | D196: =INDEX('Prop2024-25DistTar'!$F$48:$F$53,D$34) -> 7533.288351 | E196: =INDEX('Prop2024-25DistTar'!$F$48:$F$53,E$34) -> 14642.90954 | F196: =INDEX('Prop2024-25DistTar'!$F$48:$F$53,F$34) -> 6367.36882 | G196: =INDEX('Prop2024-25DistTar'!$F$48:$F$53,G$34) -> 24547.8107 | H196: =INDEX('Prop2024-25DistTar'!$F$48:$F$53,H$34) -> 33319.56179
B198: Distribution revenue | C198: Fixed | D198: Blk1 | E198: Blk2 | F198: Blk3 | G198: Blk4 | H198: Blk5
B200: =B194 -> Existing (1 Jan - 31 Dec): Tariff V Non-Residential - Multinet Gippsland Towns | C200: =INDEX('Prop2024-25DistTar'!$H$48:$H$53,C$35) -> 14846.375 | D200: =INDEX('Prop2024-25DistTar'!$H$48:$H$53,D$35) -> 63272.08886 | E200: =INDEX('Prop2024-25DistTar'!$H$48:$H$53,E$35) -> 94695.69602 | F200: =INDEX('Prop2024-25DistTar'!$H$48:$H$53,F$35) -> 32925.66417 | G200: =INDEX('Prop2024-25DistTar'!$H$48:$H$53,G$35) -> 114427.1648 | H200: =INDEX('Prop2024-25DistTar'!$H$48:$H$53,H$35) -> 139042.5314
B202: =B196 -> Proposed (1 Jan-31 Dec): Tariff V Non-Residential - Multinet Gippsland Towns | C202: =INDEX('Prop2024-25DistTar'!$G$48:$G$53,C$34) -> 14846.375 | D202: =INDEX('Prop2024-25DistTar'!$G$48:$G$53,D$34) -> 68850.48889 | E202: =INDEX('Prop2024-25DistTar'!$G$48:$G$53,E$34) -> 103040.6902 | F202: =INDEX('Prop2024-25DistTar'!$G$48:$G$53,F$34) -> 32925.66417 | G202: =INDEX('Prop2024-25DistTar'!$G$48:$G$53,G$34) -> 114427.1648 | H202: =INDEX('Prop2024-25DistTar'!$G$48:$G$53,H$34) -> 139115.8344
B204: Revenue | C204: Total
B205: =B200 -> Existing (1 Jan - 31 Dec): Tariff V Non-Residential - Multinet Gippsland Towns | C205: =SUM(C199:H200) -> 459209.5202
B206: =B202 -> Proposed (1 Jan-31 Dec): Tariff V Non-Residential - Multinet Gippsland Towns | C206: =SUM(C201:H202) -> 473206.2174
B208: Average price movement | C208: =IF(C206=0,"",C206/C205) -> 1.03047998
B210: =IF(C208="","",IF(C208<=$C$15,"REBALANCING CONTROL COMPLIANT","REBALANCING CONTROL BREACHED")) -> REBALANCING CONTROL COMPLIANT
B214: Tariff D - Multinet
C215: 1 | D215: 2
B216: Distribution tariff | C216: DemBlk1 | D216: DemBlk2
B217: Existing: Tariff D - Multinet | C217: =INDEX('Prop2024-25DistTar'!$E$55:$E$56,C215) -> 671.0214 | D217: =INDEX('Prop2024-25DistTar'!$E$55:$E$56,D215) -> 114.1775
B218: ="Proposed: "&B214 -> Proposed: Tariff D - Multinet | C218: =INDEX('Prop2024-25DistTar'!$D$55:$D$56,C215) -> 698.2112 | D218: =INDEX('Prop2024-25DistTar'!$D$55:$D$56,D215) -> 118.8039
B220: Distribution volumes (actual) | C220: DemBlk1 | D220: DemBlk2
B221: =B217 -> Existing: Tariff D - Multinet | C221: =INDEX('Prop2024-25DistTar'!$F$55:$F$56,C$215) -> 3180.14 | D221: =INDEX('Prop2024-25DistTar'!$F$55:$F$56,D$215) -> 821.37
B222: =B218 -> Proposed: Tariff D - Multinet | C222: =INDEX('Prop2024-25DistTar'!$F$55:$F$56,C$215) -> 3180.14 | D222: =INDEX('Prop2024-25DistTar'!$F$55:$F$56,D$215) -> 821.37
B224: Distribution revenue | C224: DemBlk1 | D224: DemBlk2
B225: =B221 -> Existing: Tariff D - Multinet | C225: =INDEX('Prop2024-25DistTar'!$H$55:$H$56,C215) -> 2133941.995 | D225: =INDEX('Prop2024-25DistTar'!$H$55:$H$56,D215) -> 93781.97318
B226: =B222 -> Proposed: Tariff D - Multinet | C226: =INDEX('Prop2024-25DistTar'!$G$55:$G$56,C215) -> 2220409.366 | D226: =INDEX('Prop2024-25DistTar'!$G$55:$G$56,D215) -> 97581.95934
B228: Revenue | C228: Total
B229: =B225 -> Existing: Tariff D - Multinet | C229: =SUM(C225:D225) -> 2227723.968
B230: =B226 -> Proposed: Tariff D - Multinet | C230: =SUM(C226:D226) -> 2317991.325
B232: Average price movement | C232: =IF(C230=0,"",C230/C229) -> 1.040519992
B234: =IF(C232="","",IF(C232<=$C$15,"REBALANCING CONTROL COMPLIANT","REBALANCING CONTROL BREACHED")) -> REBALANCING CONTROL COMPLIANT
B238: Tariff D - Multinet South Gippsland
C239: 1 | D239: 2
B240: Distribution tariff | C240: DemBlk1 | D240: DemBlk2
B241: Existing: Tariff D - Multinet South Gippsland | C241: =INDEX('Prop2024-25DistTar'!$E$58:$E$59,C239) -> 725.0355 | D241: =INDEX('Prop2024-25DistTar'!$E$58:$E$59,D239) -> 123.3513
B242: ="Proposed: "&B238 -> Proposed: Tariff D - Multinet South Gippsland | C242: =INDEX('Prop2024-25DistTar'!$D$58:$D$59,C239) -> 754.4139 | D242: =INDEX('Prop2024-25DistTar'!$D$58:$D$59,D239) -> 128.3494
B244: Distribution volumes (actual) | C244: DemBlk1 | D244: DemBlk2
B245: =B241 -> Existing: Tariff D - Multinet South Gippsland | C245: =INDEX('Prop2024-25DistTar'!$F$58:$F$59,C$239) -> 100 | D245: =INDEX('Prop2024-25DistTar'!$F$58:$F$59,D$239) -> 56.13
B246: =B242 -> Proposed: Tariff D - Multinet South Gippsland | C246: =INDEX('Prop2024-25DistTar'!$F$58:$F$59,C$239) -> 100 | D246: =INDEX('Prop2024-25DistTar'!$F$58:$F$59,D$239) -> 56.13
B248: Distribution revenue | C248: DemBlk1 | D248: DemBlk2
B249: =B245 -> Existing: Tariff D - Multinet South Gippsland | C249: =INDEX('Prop2024-25DistTar'!$H$58:$H$59,C239) -> 72503.55 | D249: =INDEX('Prop2024-25DistTar'!$H$58:$H$59,D239) -> 6923.708469
B250: =B246 -> Proposed: Tariff D - Multinet South Gippsland | C250: =INDEX('Prop2024-25DistTar'!$G$58:$G$59,C239) -> 75441.39 | D250: =INDEX('Prop2024-25DistTar'!$G$58:$G$59,D239) -> 7204.251822
B252: Revenue | C252: Total
B253: =B249 -> Existing: Tariff D - Multinet South Gippsland | C253: =SUM(C249:D249) -> 79427.25847
B254: =B250 -> Proposed: Tariff D - Multinet South Gippsland | C254: =SUM(C250:D250) -> 82645.64182
B256: Average price movement | C256: =IF(C254=0,"",C254/C253) -> 1.040519885
B258: =IF(C256="","",IF(C256<=$C$15,"REBALANCING CONTROL COMPLIANT","REBALANCING CONTROL BREACHED")) -> REBALANCING CONTROL COMPLIANT
B261: Tariff L- Multinet Metro | C261: 1 | D261: 2 | E261: 3 | F261: 4
C262: 1 | D262: 2 | E262: 3
B263: Distribution tariff | C263: Blk1 | D263: Blk2 | E263: Rolling12 | F263: PD
B265: Existing (1 Jan - 31 Dec): Tariff L- Multinet Non-Residential | C265: =INDEX('Prop2024-25DistTar'!$E$62:$E$65,C$35) -> 0.5791 | D265: =INDEX('Prop2024-25DistTar'!$E$62:$E$65,D$35) -> 0.1413 | E265: =INDEX('Prop2024-25DistTar'!$E$62:$E$65,E$35) -> 0.6437 | F265: =INDEX('Prop2024-25DistTar'!$E$62:$E$65,F$35) -> 1.9255
B267: ="Proposed (1 Jan-31 Dec): "&B261 -> Proposed (1 Jan-31 Dec): Tariff L- Multinet Metro | C267: =INDEX('Prop2024-25DistTar'!$D$62:$D$65,C$35) -> 0.6026 | D267: =INDEX('Prop2024-25DistTar'!$D$62:$D$65,D$35) -> 0.147 | E267: =INDEX('Prop2024-25DistTar'!$D$62:$D$65,E$35) -> 0.6697 | F267: =INDEX('Prop2024-25DistTar'!$D$62:$D$65,F$35) -> 2.0035
B269: Distribution volumes (actual) | C269: Blk1 | D269: Blk2 | E269: Rolling12 | F269: PD
B271: =B265 -> Existing (1 Jan - 31 Dec): Tariff L- Multinet Non-Residential | C271: =INDEX('Prop2024-25DistTar'!$F$62:$F$65,C$35) -> 20269.17 | D271: =INDEX('Prop2024-25DistTar'!$F$62:$F$65,D$35) -> 56434.92 | E271: =INDEX('Prop2024-25DistTar'!$F$62:$F$65,E$35) -> 45.10583333 | F271: =INDEX('Prop2024-25DistTar'!$F$62:$F$65,F$35) -> 39.56
B273: =B267 -> Proposed (1 Jan-31 Dec): Tariff L- Multinet Metro | C273: =INDEX('Prop2024-25DistTar'!$F$62:$F$65,C$35) -> 20269.17 | D273: =INDEX('Prop2024-25DistTar'!$F$62:$F$65,D$35) -> 56434.92 | E273: =INDEX('Prop2024-25DistTar'!$F$62:$F$65,E$35) -> 45.10583333 | F273: =INDEX('Prop2024-25DistTar'!$F$62:$F$65,F$35) -> 39.56
B275: Distribution revenue | C275: Blk1 | D275: Blk2 | E275: Rolling12 | F275: PD
B277: =B271 -> Existing (1 Jan - 31 Dec): Tariff L- Multinet Non-Residential | C277: =INDEX('Prop2024-25DistTar'!$H$62:$H$65,C$35) -> 11737.87635 | D277: =INDEX('Prop2024-25DistTar'!$H$62:$H$65,D$35) -> 7974.254196 | E277: =INDEX('Prop2024-25DistTar'!$H$62:$H$65,E$35) -> 10597.63809 | F277: =INDEX('Prop2024-25DistTar'!$H$62:$H$65,F$35) -> 9293.07916
B279: =B273 -> Proposed (1 Jan-31 Dec): Tariff L- Multinet Metro | C279: =INDEX('Prop2024-25DistTar'!$G$62:$G$65,C$35) -> 12214.20184 | D279: =INDEX('Prop2024-25DistTar'!$G$62:$G$65,D$35) -> 8295.93324 | E279: =INDEX('Prop2024-25DistTar'!$G$62:$G$65,E$35) -> 11025.69245 | F279: =INDEX('Prop2024-25DistTar'!$G$62:$G$65,F$35) -> 9669.53212
B281: Revenue | C281: Total
B282: =B277 -> Existing (1 Jan - 31 Dec): Tariff L- Multinet Non-Residential | C282: =SUM(C277:F277) -> 39602.8478
B283: =B279 -> Proposed (1 Jan-31 Dec): Tariff L- Multinet Metro | C283: =SUM(C279:F279) -> 41205.35965
B285: Average price movement | C285: =IF(C283=0,"",C283/C282) -> 1.040464561
B287: =IF(C285="","",IF(C285<=$C$15,"REBALANCING CONTROL COMPLIANT","REBALANCING CONTROL BREACHED")) -> REBALANCING CONTROL COMPLIANT

Sheet ARS
A1: Tariff Approval - Multinet
A3: Ancillary Reference Services (Exc GST)
B5: 2023-24 | C5: 2024-25
A6: Turn On / Reconnections | B6: 49.17 | C6: =ROUND(B6*(1+'Model update'!$B$31),0) -> 51
A7: Meter Investigations | B7: 166.51 | C7: =ROUND(B7*(1+'Model update'!$B$31),0) -> 173
A8: Disconnections | B8: 58.33 | C8: =ROUND(B8*(1+'Model update'!$B$31),0) -> 61
A9: Special meter reading | B9: 7.47 | C9: =ROUND(B9*(1+'Model update'!$B$31),1) -> 7.8
A10: Meter removals | B10: 69.68 | C10: =ROUND(B10*(1+'Model update'!$B$31),0) -> 73
A11: Meter reinstallation | B11: 69.68 | C11: =ROUND(B11*(1+'Model update'!$B$31),0) -> 73
A12: Service abolishment - Residential | B12: 220 | C12: =ROUND(B12*(1+'Model update'!$B$31),0) -> 229
